[Event "90th GER-ch 2019"]
[Site "Magdeburg"]
[Date "2019.06.01"]
[Round "9.5"]
[White "Paul, Johannes"]
[Black "Lubbe, Nikolas"]
[Result "0-1"]
[ECO "D35"]
[WhiteElo "2364"]
[BlackElo "2431"]
[Annotator "ChessBase"]
[PlyCount "118"]
[EventDate "2019.05.26"]
[EventType "tourn"]
[EventCountry "GER"]
[SourceTitle "playchess.com"]
[Source "ChessBase"]
[SourceQuality "1"]
[TimeControl "40/5400+30:1800+30"]

1. d4 {[%emt 0:00:00]} Nf6 {[%emt 0:00:00]} 2. c4 {[%emt 0:00:00]} e6 {[%emt 0:00:00]} 3. Nc3 {[%emt 0:00:00]} d5 {[%emt 0:00:00]} 4. cxd5 {[%emt 0:00:17]} exd5 {[%emt 0:00:05]} 5. Bg5 {[%emt 0:00:13]} c6 {[%emt 0:00:52]} 6. e3 {[%emt 0:00:06]} Be7 {[%emt 0:00:46]} 7. Bd3 {[%emt 0:00:11]} Nbd7 {[%emt 0:00:12]} 8. Nge2 {[%emt 0:00:29]} O-O {[%emt 0:05:50]} 9. Qc2 {[%emt 0:01:38]} Re8 {[%emt 0:00:13]} 10. O-O {[%emt 0:00:12]} Nf8 {[%emt 0:04:41]} 11. f3 {[%emt 0:02:27]} g6 {[%emt 0:19:20]} 12. Rad1 {[%emt 0:17:45]} Ne6 {[%emt 0:12:35]} 13. Bh4 {[%emt 0:01:13]} a6 {[%emt 0:06:26]} 14. Kh1 {[%emt 0:14:46]} b5 {[%emt 0:03:49]} 15. Bf2 {[%emt 0:27:09]} Bb7 {[%emt 0:01:24]} 16. e4 {[%emt 0:01:30]} Rc8 {[%emt 0:01:49]} 17. e5 {[%emt 0:01:53]} Nh5 {[%emt 0:00:33]} 18. Qd2 {[%emt 0:02:34]} c5 {[%emt 0:02:44]} 19. dxc5 {[%emt 0:05:20]} Bxc5 {[%emt 0:00:40]} 20. Bxc5 {[%emt 0:00:12]} Nxc5 {[%emt 0:00:46]} 21. f4 {[%emt 0:05:37]} d4 {[%emt 0:03:35]} 22. Nb1 {[%emt 0:01:19]} Qd5 {[%emt 0:00:48]} 23. Rf3 {[%emt 0:01:57]} Qxa2 {[%emt 0:01:56]} 24. Rh3 {[%emt 0:00:14]} Qd5 {[%emt 0:02:13]} 25. Rg1 {[%emt 0:01:25]} Red8 {[%emt 0:02:42]} 26. Rxh5 {[%emt 0:01:37]} Nxd3 {[%emt 0:05:17]} 27. Qxd3 {[%emt 0:01:04]} gxh5 {[%emt 0:00:12]} 28. Nd2 {[%emt 0:01:31]} Kh8 {[%emt 0:02:13]} 29. Ng3 {[%emt 0:03:40]} Rc1 {[%emt 0:01:57]} 30. Nf3 {[%emt 0:00:03]} Rxg1+ {[%emt 0:02:39]} 31. Kxg1 {[%emt 0:00:01]} Qc4 {[%emt 0:02:01]} 32. Qf5 {[%emt 0:00:26]} Qe6 {[%emt 0:01:18]} 33. Qg5 {[%emt 0:01:10]} Rg8 {[%emt 0:01:05]} 34. Qxh5 {[%emt 0:01:22]} Bxf3 {[%emt 0:01:24]} 35. Qxf3 {[%emt 0:00:05]} Rd8 {[%emt 0:03:31]} 36. Qd3 {[%emt 0:01:46]} Qg4 {[%emt 0:02:00]} 37. Ne2 {[%emt 0:03:34]} Qg6 {[%emt 0:00:44]} 38. f5 {[%emt 0:00:25]} Qg5 {[%emt 0:00:15]} 39. Kf2 {[%emt 0:01:08]} Rd5 {[%emt 0:00:42]} 40. Kf3 {[%emt 0:03:09]} Qe7 {[%emt 0:03:41]} 41. Nf4 {[%emt 0:02:38]} Rxe5 {[%emt 0:07:49]} 42. Qxd4 {[%emt 0:00:13]} Qf6 {[%emt 0:00:48]} 43. Qb4 {[%emt 0:03:58]} Qc6+ {[%emt 0:02:50]} 44. Kg4 {[%emt 0:03:50]} Qc8 {[%emt 0:02:39]} 45. Kh4 {[%emt 0:03:29]} Qd8+ {[%emt 0:02:24]} 46. Kg4 {[%emt 0:00:08]} h6 {[%emt 0:01:44]} 47. h4 {[%emt 0:02:47]} Qd7 {[%emt 0:05:17]} 48. Kf3 {[%emt 0:02:28]} Kg8 {[%emt 0:00:54]} 49. g3 {[%emt 0:02:06]} Qd1+ {[%emt 0:03:34]} 50. Kg2 {[%emt 0:00:49]} Qc2+ {[%emt 0:01:14]} 51. Kf3 {[%emt 0:00:21]} Qd1+ {[%emt 0:00:33]} 52. Kg2 {[%emt 0:00:06]} Re1 {[%emt 0:01:52]} 53. Qc5 {[%emt 0:03:49]} Qd2+ {[%emt 0:00:35]} 54. Kf3 {[%emt 0:00:25]} Rf1+ {[%emt 0:00:23]} 55. Ke4 {[%emt 0:00:27]} Qe1+ {[%emt 0:00:47]} 56. Kd5 {[%emt 0:00:28]} Qxg3 {[%emt 0:00:47]} 57. Qc8+ {[%emt 0:01:14]} Kh7 {[%emt 0:00:17]} 58. Ng6 {[%emt 0:00:56]} Rd1+ {[%emt 0:01:46]} 59. Ke4 {[%emt 0:00:04]} Qd3+ {[%emt 0:00:15] Kd4} 0-1

[Event "90th GER-ch 2019"]
[Site "Magdeburg"]
[Date "2019.06.01"]
[Round "9.6"]
[White "Roseneck, Jonas"]
[Black "Schulz, Karsten"]
[Result "1/2-1/2"]
[ECO "C00"]
[WhiteElo "2403"]
[BlackElo "2227"]
[Annotator "ChessBase"]
[PlyCount "123"]
[EventDate "2019.05.26"]
[EventType "tourn"]
[EventCountry "GER"]
[SourceTitle "playchess.com"]
[Source "ChessBase"]
[SourceQuality "1"]
[TimeControl "40/5400+30:1800+30"]

1. e4 {[%emt 0:00:00]} e6 {[%emt 0:00:00]} 2. d4 {[%emt 0:00:00]} b6 {[%emt 0:00:00]} 3. Bd3 {[%emt 0:00:25]} Bb7 {[%emt 0:00:00]} 4. Nf3 {[%emt 0:00:03]} g6 {[%emt 0:00:02]} 5. Bg5 {[%emt 0:14:33]} Qc8 {[%emt 0:00:59]} 6. O-O {[%emt 0:04:26]} Bg7 {[%emt 0:00:57]} 7. Re1 {[%emt 0:00:54]} d6 {[%emt 0:01:47]} 8. Nbd2 {[%emt 0:00:24]} Nd7 {[%emt 0:00:29]} 9. Nf1 {[%emt 0:00:20]} h6 {[%emt 0:03:24]} 10. Be3 {[%emt 0:00:54]} Ngf6 {[%emt 0:01:09]} 11. Ng3 {[%emt 0:03:40]} O-O {[%emt 0:05:27]} 12. h3 {[%emt 0:00:13]} a6 {[%emt 0:09:31]} 13. c3 {[%emt 0:16:17]} Qd8 {[%emt 0:06:32]} 14. a4 {[%emt 0:15:26]} Re8 {[%emt 0:06:24]} 15. Qc1 {[%emt 0:06:08]} Kh7 {[%emt 0:00:21]} 16. h4 {[%emt 0:00:28]} Ng4 {[%emt 0:05:50]} 17. h5 {[%emt 0:05:08]} Nxe3 {[%emt 0:01:03]} 18. Qxe3 {[%emt 0:00:20]} e5 {[%emt 0:08:48]} 19. dxe5 {[%emt 0:09:45]} Nxe5 {[%emt 0:02:24]} 20. Nxe5 {[%emt 0:00:06]} dxe5 {[%emt 0:01:14]} 21. Bc4 {[%emt 0:02:00]} Qe7 {[%emt 0:02:02]} 22. Rad1 {[%emt 0:01:49]} Rad8 {[%emt 0:01:31]} 23. Qe2 {[%emt 0:02:44]} a5 {[%emt 0:00:59]} 24. Rxd8 {[%emt 0:02:27]} Rxd8 {[%emt 0:00:14]} 25. Rd1 {[%emt 0:00:00]} Rd7 {[%emt 0:01:36]} 26. Rxd7 {[%emt 0:00:20]} Qxd7 {[%emt 0:00:08]} 27. Qf3 {[%emt 0:00:18]} gxh5 {[%emt 0:05:32]} 28. Nxh5 {[%emt 0:03:14]} Kg8 {[%emt 0:06:42]} 29. Bd5 {[%emt 0:01:32]} Bc8 {[%emt 0:08:03]} 30. Nf6+ {[%emt 0:00:28]} Bxf6 {[%emt 0:00:17]} 31. Qxf6 {[%emt 0:00:01]} Qe8 {[%emt 0:00:59]} 32. Qg6+ {[%emt 0:00:59]} Kf8 {[%emt 0:00:11]} 33. Qxh6+ {[%emt 0:00:02]} Kg8 {[%emt 0:01:59]} 34. Qg6+ {[%emt 0:02:32]} Kf8 {[%emt 0:01:06]} 35. Qf6 {[%emt 0:00:01]} Kg8 {[%emt 0:01:11]} 36. g3 {[%emt 0:01:51]} Bd7 {[%emt 0:01:22]} 37. Qg5+ {[%emt 0:04:08]} Kh7 {[%emt 0:00:42]} 38. Qh5+ {[%emt 0:01:26]} Kg7 {[%emt 0:01:27]} 39. Qg5+ {[%emt 0:01:20]} Kh7 {[%emt 0:02:36]} 40. b3 {[%emt 0:00:43]} c6 {[%emt 0:00:23]} 41. Bc4 {[%emt 0:32:01]} b5 {[%emt 0:34:12]} 42. axb5 {[%emt 0:00:00]} cxb5 {[%emt 0:00:00]} 43. Bd5 {[%emt 0:00:00]} a4 {[%emt 0:00:00]} 44. bxa4 {[%emt 0:00:00]} bxa4 {[%emt 0:00:00]} 45. Qf6 {[%emt 0:00:00]} Be6 {[%emt 0:00:00]} 46. Qh4+ {[%emt 0:00:00]} Kg7 {[%emt 0:00:00]} 47. Qg5+ {[%emt 0:00:00]} Kh7 {[%emt 0:00:00]} 48. Qh5+ {[%emt 0:00:00]} Kg8 {[%emt 0:00:00]} 49. Qg5+ {[%emt 0:00:00]} Kh7 {[%emt 0:00:00]} 50. Qxe5 {[%emt 0:00:00]} Qb5 {[%emt 0:00:00]} 51. Qh5+ {[%emt 0:00:00]} Kg7 {[%emt 0:00:00]} 52. Qg5+ {[%emt 0:00:00]} Kh7 {[%emt 0:00:00]} 53. Qh4+ {[%emt 0:00:00]} Kg6 {[%emt 0:00:00]} 54. Bxe6 {[%emt 0:00:00]} fxe6 {[%emt 0:00:00]} 55. e5 {[%emt 0:00:00]} Qb3 {[%emt 0:00:00]} 56. g4 {[%emt 0:00:00]} a3 {[%emt 0:00:00]} 57. Qf6+ {[%emt 0:00:00]} Kh7 {[%emt 0:00:00]} 58. g5 {[%emt 0:04:35]} Qb1+ {[%emt 0:00:00]} 59. Kh2 {[%emt 0:00:17]} Qf5 {[%emt 0:00:00]} 60. Qe7+ {[%emt 0:00:24]} Kg6 {[%emt 0:00:36]} 61. Qxa3 {[%emt 0:00:55]} Qxf2+ {[%emt 0:00:09]} 62. Kh1 {[%emt 0:00:03]} 1/2-1/2

[Event "90th GER-ch 2019"]
[Site "Magdeburg"]
[Date "2019.06.01"]
[Round "9.7"]
[White "Pfreundt, Jakob"]
[Black "Becker, Marcel"]
[Result "1/2-1/2"]
[ECO "A11"]
[WhiteElo "2392"]
[BlackElo "2308"]
[Annotator "ChessBase"]
[PlyCount "106"]
[EventDate "2019.05.26"]
[EventType "tourn"]
[EventCountry "GER"]
[SourceTitle "playchess.com"]
[Source "ChessBase"]
[SourceQuality "1"]
[TimeControl "40/5400+30:1800+30"]

1. c4 {[%emt 0:00:00]} c6 {[%emt 0:00:00]} 2. Nc3 {[%emt 0:00:00]} d5 {[%emt 0:00:00]} 3. e3 {[%emt 0:00:00]} e5 {[%emt 0:02:47]} 4. d4 {[%emt 0:00:00]} exd4 {[%emt 0:01:30]} 5. exd4 {[%emt 0:00:03]} Nf6 {[%emt 0:00:33]} 6. Nf3 {[%emt 0:00:08]} Be7 {[%emt 0:01:04]} 7. Bd3 {[%emt 0:00:29]} O-O {[%emt 0:01:14]} 8. cxd5 {[%emt 0:02:46]} cxd5 {[%emt 0:00:13]} 9. h3 {[%emt 0:00:06]} Nc6 {[%emt 0:03:22]} 10. O-O {[%emt 0:00:10]} h6 {[%emt 0:00:43]} 11. Bf4 {[%emt 0:02:29]} Be6 {[%emt 0:06:29]} 12. Re1 {[%emt 0:02:00]} Re8 {[%emt 0:01:15]} 13. Rc1 {[%emt 0:01:41]} a6 {[%emt 0:08:28]} 14. Bb1 {[%emt 0:01:29]} Nd7 {[%emt 0:02:42]} 15. Qd3 {[%emt 0:02:54]} Nf8 {[%emt 0:00:09]} 16. Na4 {[%emt 0:01:17]} Bd6 {[%emt 0:06:03]} 17. Ne5 {[%emt 0:05:00]} Qf6 {[%emt 0:05:02]} 18. Bg3 {[%emt 0:04:37]} Ne7 {[%emt 0:04:54]} 19. Ng4 {[%emt 0:22:26]} Bxg4 {[%emt 0:00:35]} 20. Bxd6 {[%emt 0:00:24]} Qxd6 {[%emt 0:01:02]} 21. hxg4 {[%emt 0:00:08]} Nc6 {[%emt 0:01:33]} 22. Nc3 {[%emt 0:11:18]} Rxe1+ {[%emt 0:05:24]} 23. Rxe1 {[%emt 0:00:08]} Rd8 {[%emt 0:00:22]} 24. Rd1 {[%emt 0:04:02]} Qf4 {[%emt 0:03:35]} 25. Qf5 {[%emt 0:01:01]} Qd6 {[%emt 0:02:11]} 26. a3 {[%emt 0:03:47]} g6 {[%emt 0:00:15]} 27. Qf3 {[%emt 0:00:45]} Ne6 {[%emt 0:01:22]} 28. Qe3 {[%emt 0:03:32]} Qf4 {[%emt 0:02:05]} 29. Qxf4 {[%emt 0:01:12]} Nxf4 {[%emt 0:00:09]} 30. Ba2 {[%emt 0:00:11]} Kf8 {[%emt 0:07:39]} 31. g3 {[%emt 0:03:28]} Ne6 {[%emt 0:00:43]} 32. Bxd5 {[%emt 0:00:16]} Nexd4 {[%emt 0:01:17]} 33. Kg2 {[%emt 0:00:14]} Re8 {[%emt 0:02:24]} 34. Rd2 {[%emt 0:07:18]} Rd8 {[%emt 0:11:54]} 35. f4 {[%emt 0:06:04]} Nb5 {[%emt 0:02:40]} 36. Ne4 {[%emt 0:01:57]} Na5 {[%emt 0:08:23]} 37. b4 {[%emt 0:05:17]} f5 {[%emt 0:01:48]} 38. gxf5 {[%emt 0:01:09]} gxf5 {[%emt 0:00:02]} 39. Nc5 {[%emt 0:05:01]} Nc4 {[%emt 0:00:31]} 40. Ne6+ {[%emt 0:00:13]} Ke7 {[%emt 0:00:07]} 41. Nxd8 {[%emt 0:30:15]} Nxd2 {[%emt 0:30:09]} 42. Nxb7 {[%emt 0:00:07]} Nxa3 {[%emt 0:00:09]} 43. Nc5 {[%emt 0:01:02]} Nc2 {[%emt 0:01:37]} 44. Bb7 {[%emt 0:01:35]} Nxb4 {[%emt 0:00:13]} 45. Nxa6 {[%emt 0:03:32]} Nxa6 {[%emt 0:00:13]} 46. Bxa6 {[%emt 0:00:04]} Kf6 {[%emt 0:01:15]} 47. Kh3 {[%emt 0:01:11]} Ne4 {[%emt 0:00:49]} 48. Bb7 {[%emt 0:00:00]} Nf2+ {[%emt 0:00:00]} 49. Kh4 {[%emt 0:00:00]} Kg6 {[%emt 0:00:00]} 50. Bc6 {[%emt 0:00:00]} Ng4 {[%emt 0:00:00]} 51. Bf3 {[%emt 0:00:00]} Nf6 {[%emt 0:00:00]} 52. Bd1 {[%emt 0:00:00]} Ne4 {[%emt 0:00:00]} 53. g4 {[%emt 0:00:00]} fxg4 {[%emt 0:00:00]} 1/2-1/2

[Event "90th GER-ch 2019"]
[Site "Magdeburg"]
[Date "2019.06.01"]
[Round "9.8"]
[White "Engel, Luis"]
[Black "Gungl, Theo"]
[Result "1-0"]
[ECO "B90"]
[WhiteElo "2512"]
[BlackElo "2331"]
[Annotator "ChessBase"]
[PlyCount "77"]
[EventDate "2019.05.26"]
[EventType "tourn"]
[EventCountry "GER"]
[SourceTitle "playchess.com"]
[Source "ChessBase"]
[SourceQuality "1"]
[TimeControl "40/5400+30:1800+30"]

1. e4 {[%emt 0:00:00]} c5 {[%emt 0:00:00]} 2. Nf3 {[%emt 0:00:00]} d6 {[%emt 0:00:00]} 3. d4 {[%emt 0:00:00]} cxd4 {[%emt 0:00:00]} 4. Nxd4 {[%emt 0:00:00]} Nf6 {[%emt 0:00:00]} 5. Nc3 {[%emt 0:00:00]} a6 {[%emt 0:00:00]} 6. Be3 {[%emt 0:00:00]} e6 {[%emt 0:00:00]} 7. f3 {[%emt 0:00:00]} b5 {[%emt 0:00:05]} 8. Qd2 {[%emt 0:00:03]} Bb7 {[%emt 0:00:08]} 9. g4 {[%emt 0:00:06]} Nfd7 {[%emt 0:00:05]} 10. O-O-O {[%emt 0:00:09]} Nb6 {[%emt 0:00:08]} 11. Nb3 {[%emt 0:00:14]} N8d7 {[%emt 0:00:16]} 12. Na5 {[%emt 0:00:13]} Rb8 {[%emt 0:00:14]} 13. Bf4 {[%emt 0:00:22]} Nc8 {[%emt 0:00:06]} 14. Nxb7 {[%emt 0:00:06]} Rxb7 {[%emt 0:00:02]} 15. h4 {[%emt 0:01:41]} Be7 {[%emt 0:02:03]} 16. Kb1 {[%emt 0:00:59]} O-O {[%emt 0:13:36]} 17. g5 {[%emt 0:01:49]} Nc5 {[%emt 0:13:05]} 18. b3 {[%emt 0:09:41]} b4 {[%emt 0:05:54]} 19. Ne2 {[%emt 0:00:24]} Na7 {[%emt 0:05:40]} 20. Nc1 {[%emt 0:02:51]} Qa5 {[%emt 0:08:35]} 21. Be3 {[%emt 0:03:41]} Rc8 {[%emt 0:05:22]} 22. Bd4 {[%emt 0:04:14]} Rbc7 {[%emt 0:01:22]} 23. Bb2 {[%emt 0:09:00]} Nd7 {[%emt 0:07:55]} 24. Rh2 {[%emt 0:02:54]} Ne5 {[%emt 0:04:43]} 25. Qe3 {[%emt 0:05:13]} Nb5 {[%emt 0:04:54]} 26. Bxb5 {[%emt 0:00:16]} Qxb5 {[%emt 0:00:02]} 27. Rg2 {[%emt 0:04:06]} Bf8 {[%emt 0:02:21]} 28. f4 {[%emt 0:01:51]} Nc6 {[%emt 0:00:30]} 29. h5 {[%emt 0:03:41]} a5 {[%emt 0:08:36]} 30. f5 {[%emt 0:05:48]} exf5 {[%emt 0:01:38]} 31. g6 {[%emt 0:02:38]} hxg6 {[%emt 0:10:22]} 32. hxg6 {[%emt 0:00:23]} fxg6 {[%emt 0:02:16]} 33. Rxg6 {[%emt 0:03:48]} Ne5 {[%emt 0:02:33]} 34. Rg2 {[%emt 0:01:07]} fxe4 {[%emt 0:01:03]} 35. Rh1 {[%emt 0:02:45]} Qd5 {[%emt 0:00:59]} 36. Qh3 {[%emt 0:02:46]} Re8 {[%emt 0:01:37]} 37. Qh5 {[%emt 0:07:50]} e3 {[%emt 0:01:34]} 38. Rgh2 {[%emt 0:04:56]} Rcc8 {[%emt 0:00:42]} 39. Rf1 {[%emt 0:00:30]} 1-0

[Event "90th GER-ch 2019"]
[Site "Magdeburg"]
[Date "2019.06.01"]
[Round "9.9"]
[White "Bastian, Herbert"]
[Black "Pajeken, Jakob Leon"]
[Result "1-0"]
[ECO "C50"]
[WhiteElo "2297"]
[BlackElo "2359"]
[Annotator "ChessBase"]
[PlyCount "67"]
[EventDate "2019.05.26"]
[EventType "tourn"]
[EventCountry "GER"]
[SourceTitle "playchess.com"]
[Source "ChessBase"]
[SourceQuality "1"]
[TimeControl "40/5400+30:1800+30"]

1. e4 {[%emt 0:00:55]} e5 {[%emt 0:00:00]} 2. Nf3 {[%emt 0:00:19]} Nc6 {[%emt 0:00:00]} 3. Bc4 {[%emt 0:01:44]} Bc5 {[%emt 0:00:00]} 4. d3 {[%emt 0:12:58]} Nf6 {[%emt 0:00:48]} 5. Nc3 {[%emt 0:01:01]} d6 {[%emt 0:04:31]} 6. Be3 {[%emt 0:01:24]} Nd4 {[%emt 0:05:36]} 7. h3 {[%emt 0:12:04]} c6 {[%emt 0:02:30]} 8. O-O {[%emt 0:03:09]} b5 {[%emt 0:06:17]} 9. Bb3 {[%emt 0:02:15]} a5 {[%emt 0:08:18]} 10. a3 {[%emt 0:24:31]} Nxb3 {[%emt 0:09:34]} 11. cxb3 {[%emt 0:00:02]} Bxe3 {[%emt 0:01:43]} 12. fxe3 {[%emt 0:00:02]} O-O {[%emt 0:00:31]} 13. Qd2 {[%emt 0:02:18]} Be6 {[%emt 0:02:13]} 14. b4 {[%emt 0:00:07]} axb4 {[%emt 0:02:59]} 15. axb4 {[%emt 0:00:24]} Qe7 {[%emt 0:00:29]} 16. Ra5 {[%emt 0:00:40]} Rxa5 {[%emt 0:01:32]} 17. bxa5 {[%emt 0:00:01]} b4 {[%emt 0:00:15]} 18. Ne2 {[%emt 0:06:40]} Qa7 {[%emt 0:01:34]} 19. Ng3 {[%emt 0:01:15]} Qxa5 {[%emt 0:01:38]} 20. Nh4 {[%emt 0:00:07]} d5 {[%emt 0:01:41]} 21. Rxf6 {[%emt 0:05:42]} gxf6 {[%emt 0:00:47]} 22. Qf2 {[%emt 0:00:06]} dxe4 {[%emt 0:01:50]} 23. Nh5 {[%emt 0:00:50]} Ra8 {[%emt 0:03:15]} 24. Qxf6 {[%emt 0:00:37]} Kf8 {[%emt 0:01:11]} 25. Ng7 {[%emt 0:00:46]} Qa7 {[%emt 0:13:52]} 26. Nxe6+ {[%emt 0:00:46]} Ke8 {[%emt 0:00:04]} 27. Ng7+ {[%emt 0:06:46]} Kd7 {[%emt 0:00:58]} 28. Nhf5 {[%emt 0:03:00]} Kc7 {[%emt 0:03:06]} 29. Qd6+ {[%emt 0:01:41]} Kb7 {[%emt 0:01:26]} 30. Qxb4+ {[%emt 0:00:41]} Qb6 {[%emt 0:01:10]} 31. Nd6+ {[%emt 0:00:31]} Ka7 {[%emt 0:00:12]} 32. Qxe4 {[%emt 0:00:14]} Qxb2 {[%emt 0:02:48]} 33. Qxc6 {[%emt 0:01:36]} Qc1+ {[%emt 0:02:03]} 34. Qxc1 {[%emt 0:00:08]} 1-0

[Event "90th GER-ch 2019"]
[Site "Magdeburg"]
[Date "2019.06.01"]
[Round "9.10"]
[White "Krastev, Alexander"]
[Black "Wachinger, Nikolas"]
[Result "0-1"]
[ECO "B90"]
[WhiteElo "2344"]
[BlackElo "2311"]
[Annotator "ChessBase"]
[PlyCount "120"]
[EventDate "2019.05.26"]
[EventType "tourn"]
[EventCountry "GER"]
[SourceTitle "playchess.com"]
[Source "ChessBase"]
[SourceQuality "1"]
[TimeControl "40/5400+30:1800+30"]

1. e4 {[%emt 0:00:00]} c5 {[%emt 0:00:00]} 2. Nf3 {[%emt 0:00:00]} d6 {[%emt 0:00:00]} 3. d4 {[%emt 0:00:00]} Nf6 {[%emt 0:00:00]} 4. Nc3 {[%emt 0:00:00]} cxd4 {[%emt 0:00:00]} 5. Nxd4 {[%emt 0:00:00]} a6 {[%emt 0:00:10]} 6. Qf3 {[%emt 0:00:00]} g6 {[%emt 0:01:21]} 7. h3 {[%emt 0:00:15]} Bg7 {[%emt 0:00:40]} 8. Be3 {[%emt 0:00:05]} Bd7 {[%emt 0:06:55]} 9. O-O-O {[%emt 0:01:46]} Nc6 {[%emt 0:01:02]} 10. g4 {[%emt 0:00:25]} O-O {[%emt 0:03:40]} 11. Qg2 {[%emt 0:00:18]} Nxd4 {[%emt 0:10:53]} 12. Bxd4 {[%emt 0:01:57]} Bc6 {[%emt 0:00:16]} 13. h4 {[%emt 0:17:14]} Qa5 {[%emt 0:04:36]} 14. Kb1 {[%emt 0:03:35]} Nxe4 {[%emt 0:24:36]} 15. Bxg7 {[%emt 0:07:39]} Nxc3+ {[%emt 0:00:21]} 16. Bxc3 {[%emt 0:00:04]} Bxg2 {[%emt 0:00:10]} 17. Bxg2 {[%emt 0:00:02]} Qc7 {[%emt 0:01:59]} 18. h5 {[%emt 0:00:05]} e5 {[%emt 0:02:28]} 19. f4 {[%emt 0:00:26]} Rac8 {[%emt 0:00:54]} 20. hxg6 {[%emt 0:02:57]} hxg6 {[%emt 0:00:25]} 21. Rxd6 {[%emt 0:00:31]} Qxd6 {[%emt 0:00:59]} 22. Bxe5 {[%emt 0:00:05]} Qxe5 {[%emt 0:00:09]} 23. fxe5 {[%emt 0:00:02]} Rc7 {[%emt 0:00:37]} 24. Bd5 {[%emt 0:01:41]} Re8 {[%emt 0:01:20]} 25. Re1 {[%emt 0:00:05]} Rce7 {[%emt 0:00:48]} 26. c4 {[%emt 0:01:36]} b5 {[%emt 0:00:18]} 27. Rf1 {[%emt 0:00:53]} Kg7 {[%emt 0:07:29]} 28. Rf6 {[%emt 0:06:28]} Ra7 {[%emt 0:01:21]} 29. cxb5 {[%emt 0:06:02]} axb5 {[%emt 0:08:55]} 30. Rb6 {[%emt 0:06:03]} Rxe5 {[%emt 0:00:36]} 31. Rxb5 {[%emt 0:00:57]} Rd7 {[%emt 0:01:55]} 32. Bc6 {[%emt 0:06:04]} Re1+ {[%emt 0:01:49]} 33. Kc2 {[%emt 0:00:05]} Rd4 {[%emt 0:00:29]} 34. Bf3 {[%emt 0:01:52]} Re3 {[%emt 0:06:39]} 35. Rb3 {[%emt 0:11:51]} Rc4+ {[%emt 0:00:09]} 36. Kd2 {[%emt 0:00:12]} Rxb3 {[%emt 0:00:12]} 37. axb3 {[%emt 0:00:03]} Rf4 {[%emt 0:00:08]} 38. Be2 {[%emt 0:00:51]} Kf6 {[%emt 0:00:47]} 39. Kc3 {[%emt 0:00:47]} Ke5 {[%emt 0:00:26]} 40. b4 {[%emt 0:00:36]} g5 {[%emt 0:00:55]} 41. b5 {[%emt 0:31:11]} f5 {[%emt 0:33:14]} 42. gxf5 {[%emt 0:00:44]} g4 {[%emt 0:00:18]} 43. b6 {[%emt 0:01:33]} Kd6 {[%emt 0:00:13]} 44. Bb5 {[%emt 0:02:16]} g3 {[%emt 0:02:27]} 45. b7 {[%emt 0:00:15]} Kc7 {[%emt 0:01:10]} 46. Bc6 {[%emt 0:00:05]} Rxf5 {[%emt 0:00:18]} 47. Kd2 {[%emt 0:01:38]} Rf2+ {[%emt 0:00:07]} 48. Ke1 {[%emt 0:00:58]} Rxb2 {[%emt 0:00:03]} 49. b8=Q+ {[%emt 0:00:20]} Kxb8 {[%emt 0:00:04]} 50. Kf1 {[%emt 0:00:07]} Rf2+ {[%emt 0:00:06]} 51. Kg1 {[%emt 0:00:07]} Kc7 {[%emt 0:01:33]} 52. Ba8 {[%emt 0:00:15]} Kd6 {[%emt 0:00:15]} 53. Bb7 {[%emt 0:00:05]} Ke5 {[%emt 0:00:06]} 54. Ba8 {[%emt 0:00:27]} Kf4 {[%emt 0:00:19]} 55. Bb7 {[%emt 0:01:12]} Rc2 {[%emt 0:00:16]} 56. Ba8 {[%emt 0:00:25]} Kg4 {[%emt 0:03:25]} 57. Bd5 {[%emt 0:00:17]} Rc5 {[%emt 0:00:28]} 58. Bb7 {[%emt 0:01:38]} Rc1+ {[%emt 0:00:07]} 59. Kg2 {[%emt 0:00:09]} Rc2+ {[%emt 0:00:07]} 60. Kg1 {[%emt 0:00:17]} Kh3 {[%emt 0:00:05]} 0-1

[Event "90th GER-ch 2019"]
[Site "Magdeburg"]
[Date "2019.06.01"]
[Round "9.11"]
[White "Trifan, Andrei Ioan"]
[Black "Maetzkow, Maximilian Paul"]
[Result "1/2-1/2"]
[ECO "C11"]
[WhiteElo "2268"]
[BlackElo "2338"]
[Annotator "ChessBase"]
[PlyCount "113"]
[EventDate "2019.05.26"]
[EventType "tourn"]
[EventCountry "GER"]
[SourceTitle "playchess.com"]
[Source "ChessBase"]
[SourceQuality "1"]
[TimeControl "40/5400+30:1800+30"]

1. e4 {[%emt 0:00:08]} e6 {[%emt 0:00:00]} 2. d4 {[%emt 0:01:05]} d5 {[%emt 0:00:00]} 3. Nc3 {[%emt 0:00:43]} Nf6 {[%emt 0:00:00]} 4. e5 {[%emt 0:01:44]} Nfd7 {[%emt 0:00:00]} 5. f4 {[%emt 0:00:33]} c5 {[%emt 0:00:10]} 6. Nf3 {[%emt 0:00:30]} Nc6 {[%emt 0:00:14]} 7. Be3 {[%emt 0:00:07]} Be7 {[%emt 0:00:14]} 8. Qd2 {[%emt 0:01:53]} O-O {[%emt 0:00:22]} 9. dxc5 {[%emt 0:02:19]} Nxc5 {[%emt 0:00:45]} 10. O-O-O {[%emt 0:03:17]} b6 {[%emt 0:06:41]} 11. h4 {[%emt 0:11:55]} Bb7 {[%emt 0:05:18]} 12. Qe1 {[%emt 0:05:57]} a6 {[%emt 0:10:14]} 13. h5 {[%emt 0:08:21]} Qc7 {[%emt 0:05:30]} 14. h6 {[%emt 0:08:50]} g6 {[%emt 0:01:33]} 15. Kb1 {[%emt 0:03:22]} Rac8 {[%emt 0:07:01]} 16. Ne2 {[%emt 0:04:21]} a5 {[%emt 0:16:28]} 17. Ned4 {[%emt 0:10:23]} Nxd4 {[%emt 0:00:53]} 18. Bxd4 {[%emt 0:02:25]} a4 {[%emt 0:01:55]} 19. a3 {[%emt 0:00:37]} Ne4 {[%emt 0:01:02]} 20. Bd3 {[%emt 0:01:46]} b5 {[%emt 0:01:55]} 21. c3 {[%emt 0:02:32]} Qa5 {[%emt 0:01:41]} 22. Bxe4 {[%emt 0:06:05]} dxe4 {[%emt 0:00:21]} 23. Ng5 {[%emt 0:00:05]} Qa8 {[%emt 0:06:57]} 24. Qe2 {[%emt 0:02:10]} Bd5 {[%emt 0:10:41]} 25. Rhe1 {[%emt 0:01:34]} Bxg5 {[%emt 0:01:21]} 26. fxg5 {[%emt 0:00:03]} Rc4 {[%emt 0:00:14]} 27. Qf2 {[%emt 0:02:22]} Qd8 {[%emt 0:02:06]} 28. Bc5 {[%emt 0:02:17]} Rxc5 29. Qxc5 {[%emt 0:00:03]} Qxg5 {[%emt 0:00:23]} 30. Qxb5 {[%emt 0:01:01]} Bb3 {[%emt 0:00:42]} 31. Rd4 {[%emt 0:00:47]} Qxg2 {[%emt 0:03:42]} 32. Qe2 {[%emt 0:00:07]} Qg5 {[%emt 0:01:05]} 33. Qe3 {[%emt 0:00:52]} Qxe5 {[%emt 0:00:20]} 34. Rxe4 {[%emt 0:01:49]} Qh2 {[%emt 0:00:21]} 35. Re2 {[%emt 0:01:55]} Qh1+ {[%emt 0:01:43]} 36. Re1 {[%emt 0:00:01]} Qh2 {[%emt 0:00:01]} 37. Rd4 {[%emt 0:02:28]} f6 {[%emt 0:04:37]} 38. Rd7 {[%emt 0:07:18]} g5 {[%emt 0:00:55]} 39. Qe4 {[%emt 0:02:32]} Qxh6 {[%emt 0:02:58]} 40. Rh1 {[%emt 0:00:05]} Qg6 {[%emt 0:02:39]} 41. Qxg6+ {[%emt 0:31:55]} hxg6 {[%emt 0:30:07]} 42. Rhh7 {[%emt 0:00:00]} Rc8 {[%emt 0:00:00]} 43. Rhg7+ {[%emt 0:00:00]} Kf8 {[%emt 0:00:00]} 44. Rxg6 {[%emt 0:00:00]} f5 {[%emt 0:00:00]} 45. Rxg5 {[%emt 0:00:00]} Rc4 {[%emt 0:00:00]} 46. Rh5 {[%emt 0:00:00]} Kg8 {[%emt 0:00:00]} 47. Rg5+ {[%emt 0:00:00]} Kf8 {[%emt 0:00:00]} 48. Rd4 {[%emt 0:00:00]} Rc7 {[%emt 0:00:00]} 49. Rh4 {[%emt 0:00:00]} Rf7 {[%emt 0:00:00]} 50. Rgh5 {[%emt 0:00:00]} f4 {[%emt 0:00:00]} 51. Rh8+ {[%emt 0:00:00]} Ke7 {[%emt 0:00:00]} 52. R8h7 {[%emt 0:00:00]} e5 {[%emt 0:00:00]} 53. Kc1 {[%emt 0:00:00]} Rxh7 {[%emt 0:00:00]} 54. Rxh7+ {[%emt 0:00:00]} Kf6 {[%emt 0:00:00]} 55. Kd2 {[%emt 0:00:00]} e4 {[%emt 0:00:00]} 56. Rh5 {[%emt 0:00:00]} Bc4 {[%emt 0:00:00]} 57. Rc5 {[%emt 0:00:08]} 1/2-1/2